Cogmind - Beta 16 @@@ ROGUE MODE // 2025.10.21 @ 23:37:49 Player: Big Jerry Result: Core destroyed Performance ------------- Evolutions (3) 1500 Regions Visited (5) 1000 Robots Destroyed (98) 490 Value Destroyed (3062) 3062 Prototype IDs (8) 160 Alien Tech Used (0) 0 Bonus (604) 604 TOTAL SCORE: 6816 Bonus ------- High Alert Combat Kills 104 Entered DSFs 500 Cogmind --------- Core Integrity 0/700 Matter 129/300 Energy 78/290 System Corruption 0% Temperature Critical (589) Movement Treading (160) Location -7/DSF Parts ------- > --- POWER (1) -------- Improved Deuterium Engine > --- PROPULSION (4) --- Improved Medium Treads Improved Medium Treads Improved Medium Treads Improved Medium Treads > --- UTILITY (5) ------ Large Storage Unit Advanced Targeting Computer > --- WEAPON (3) ------- Hypervelocity Gauss Cannon Hypervelocity Gauss Cannon Hypervelocity Gauss Cannon > --- INVENTORY (15) --- Deuterium Engine Improved Terrain Scanner Gauss Rifle Gauss Rifle Heavy Assault Cannon Gauss Cannon Gauss Cannon Peak State ------------ > --- POWER ------------ Light Nuclear Core > --- PROPULSION ------- Improved Medium Treads Improved Medium Treads Improved Medium Treads VSS Leg > --- UTILITY ---------- Advanced Heat Sink Large Storage Unit Trap Scanner Hardened Medium Armor Plating Makeshift Hacking Suite > --- WEAPON ----------- Gauss Rifle Gauss Rifle Hypervelocity Gauss Cannon > --- INVENTORY -------- Nuclear Core Improved Terrain Scanner Hardened Medium Armor Plating Hardened Medium Armor Plating Improved Light Armor Plating Gauss Rifle Gauss Rifle Flak Gun Heavy Assault Cannon Gauss Cannon Gauss Cannon Hypervelocity Gauss Cannon Hypervelocity Gauss Cannon Hypervelocity Gauss Cannon [Rating: 56] Favorites ----------- Power Light Nuclear Core Engine Light Ion Engine Power Core Light Nuclear Core Propulsion Light Treads Treads Light Treads Leg Carbon-fiber Leg Hover Unit Aerolev Unit Flight Unit Improved VTOL Module Utility Large Storage Unit Device Advanced Heat Sink Storage Large Storage Unit Processor Targeting Computer Hackware Makeshift Hacking Suite Protection Hardened Medium Armor Plating Weapon Light Cannon Energy Gun Particle Gun Energy Cannon Heavy Particle Cannon Ballistic Gun Subdweller Machine Gun Ballistic Cannon Light Cannon Launcher Concussive RPG Slashing Weapon Scythe Build | -11 -10 -10 -8 -7 -7 ------- Run | Yrd Mat Sub Mat Fac DSF Slots Evolved 6 | . . . 4 2 . Power . | . . . . . . Propulsion 2 | . . . 1 1 . Utility 3 | . . . 3 . . Weapon 1 | . . . . 1 . Parts Attached 99 | 6 12 3 55 . 23 Power 12 | 1 3 . 5 . 3 Engine 7 | 1 3 . 1 . 2 Core 5 | . . . 4 . 1 Reactor . | . . . . . . Propulsion 34 | 1 2 . 22 . 9 Treads 19 | 1 2 . 10 . 6 Leg 7 | . . . 4 . 3 Wheel . | . . . . . . Hover 6 | . . . 6 . . Flight 2 | . . . 2 . . Utility 24 | 1 4 . 15 . 4 Device 9 | . 1 . 8 . . Storage 3 | 1 2 . . . . Processor 4 | . 1 . 2 . 1 Hackware 1 | . . . 1 . . Protection 7 | . . . 4 . 3 Artifact . | . . . . . . Weapon 29 | 3 3 3 13 . 7 Energy Gun 6 | 1 . 1 4 . . Energy Cannon 2 | . . . 2 . . Ballistic Gun 11 | 2 1 2 3 . 3 Ballistic Cannon 8 | . 2 . 2 . 4 Launcher 1 | . . . 1 . . Special Weapon . | . . . . . . Impact Weapon . | . . . . . . Slashing Weapon 1 | . . . 1 . . Piercing Weapon . | . . . . . . Special Melee Weapon . | . . . . . . Unidentified Prototypes 5 | . . . 5 . . Parts Lost 31 | . . 1 13 . 17 Power 2 | . . . . . 2 Propulsion 9 | . . . 5 . 4 Utility 10 | . . . 3 . 7 Weapon 10 | . . 1 5 . 4 Highest Loss Streak 12 | . . 1 4 . 12 To Critical Strikes . | . . . . . . Average Backups 12 | 4 9 12 13 13 9 Power 1 | . . . 1 1 . Propulsion 3 | 3 4 5 2 1 . Utility 3 | . 1 4 4 3 1 Weapon 4 | . 1 1 5 8 7 Tool/Special . | . . . . . . Unused Backups 14 | . . . 8 . 6 Power 2 | . . . 2 . . Propulsion 3 | . . . 3 . . Utility 2 | . . . 1 . 1 Weapon 7 | . . . 2 . 5 Tool/Special . | . . . . . . Average Slot Usage (%) 95 | . 98 99 96 84 76 Engine 6 | . 14 14 1 . . Core 4 | . . . 7 7 5 Treads 22 | . 27 28 19 23 14 Leg 1 | . . . 2 . 5 Hover 1 | . . . 2 . . Device 9 | . 1 . 16 15 6 Storage 10 | . 14 14 9 7 7 Processor 6 | . 11 14 3 . . Hackware 3 | . . . 6 7 1 Protection 5 | . . . 7 7 11 Energy Gun 4 | . . 10 5 . . Energy Cannon 2 | . . . 3 7 . Ballistic Gun 8 | . 10 13 6 . 9 Ballistic Cannon 6 | . 17 3 2 7 10 Peak Build Rating 56 | 5 10 12 44 39 56 Average Rating 24 | 3 8 10 32 39 39 On Entrance 17 | . 5 9 11 39 39 Avg Prop Armor Cover (%) 3 | . . . 6 . 3 Naked Turns . | . . . . . . Heaviest Build 66 | 12 32 30 49 49 66 Greatest Support 120 | 20 40 40 69 62 120 Greatest Overweight (x) 16 | . . . 1 . 16 Average Overweight (x) . | . . . . . 1 Largest Inventory Capacity 15 | 8 15 15 15 15 15 Average Capacity 14 | 6 11 15 15 15 15 Most Carried 15 | 6 12 15 15 14 15 Average Carried 12 | 4 9 12 14 14 10 Final Capacity 15 | 8 15 15 15 15 15 Final Carried 15 | 6 11 15 14 14 8 Class Distribution -------------------- 71% | Mutant 20% | Scavenger-Mutant 5% | Tank Dominant Class ---------------- Mutant | -10/Materials Mutant | -10/Subcaves Mutant | -8/Materials Mutant | -7/Factory Tank | -7/DSF Resources | -11 -10 -10 -8 -7 -7 ----------- Run | Yrd Mat Sub Mat Fac DSF Matter Collected 2969 | 201 505 69 1577 . 617 Remotely . | . . . . . . Salvage Created 3805 | . 512 186 2713 . 394 Parts 209 | . 35 11 138 . 25 Haulers Intercepted 7 | . 1 . 6 . . Recyclers Shooed 2 | . . . 2 . . Parts Field Recycled . | . . . . . . Retrieved Matter . | . . . . . . Parts Self-Destructed 16 | . . 16 . . . Prevented . | . . . . . . Parts Restored . | . . . . . . Kills | -11 -10 -10 -8 -7 -7 ------- Run | Yrd Mat Sub Mat Fac DSF Combat Hostiles Destroyed 66 | . 10 5 42 . 9 Guns 42 | . 9 5 25 . 3 Cannons 20 | . 1 . 13 . 6 AOE 3 | . . . 3 . . Classes Destroyed 17 | . 7 . 8 . 2 Worker 5 | . . . 5 . . Builder 1 | . . . 1 . . Tunneler 1 | . . . 1 . . Hauler 7 | . 1 . 6 . . Recycler 7 | . 1 . 6 . . Mechanic 1 | . . . 1 . . Operator 2 | . 1 . 1 . . Watcher 8 | . 3 . 5 . . Swarmer 9 | . 2 . 7 . . Grunt 33 | . 7 . 24 . 2 Brawler 1 | . . . 1 . . Sentry 9 | . . . 8 . 1 Specialist 4 | . . . . . 4 Hunter 1 | . . . 1 . . Programmer 1 | . . . . . 1 Heavy 2 | . . . 1 . 1 Subdweller 6 | . 1 5 . . . Best Kill Streak 7 | . 5 2 7 . 2 Combat Bots Only 5 | . 4 2 5 . 2 Max Kills in Single Turn 3 | . 1 1 3 . 1 Gunslinging . | . . . . . . Exploded 3 | . . . 3 . . Melee . | . . . . . . Uniques/NPCs Destroyed . | . . . . . . Combat | -11 -10 -10 -8 -7 -7 -------- Run | Yrd Mat Sub Mat Fac DSF Hostile Shots Fired 594 | . 40 22 278 . 254 Missed 170 | . 8 10 81 . 71 Hits 424 | . 32 12 197 . 183 Melee 5 | . . . 5 . . Projectile 419 | . 32 12 192 . 183 Critical Strikes 17 | . . . 12 . 5 Damage Taken 7290 | . 360 299 3174 . 3457 Core 1281 | . 34 25 424 . 798 Absorbed by Shields . | . . . . . . Redirected to Shielding 81 | . . . 81 . . Regen/Repaired (Parts) 160 | . 64 . 96 . . Core Remaining (%) 66 | 100 . 76 22 . . Volleys Fired 324 | . 52 17 212 . 43 Largest 3 | . 2 2 2 . 3 Hottest 153 | . 60 95 150 . 153 Shots Fired 639 | . 100 29 396 . 114 Gun 429 | . 62 24 274 . 69 Cannon 209 | . 38 5 121 . 45 Launcher 1 | . . . 1 . . Special . | . . . . . . Kinetic 414 | . 100 21 182 . 111 Thermal 224 | . . 8 213 . 3 Explosive 1 | . . . 1 . . Electromagnetic . | . . . . . . Robot Hit Streak 14 | . 11 11 14 . 9 Robot Miss Streak 8 | . 3 2 8 . 7 Penetration Max 1 | . . . 1 . . Secondary Targets 5 | . 4 . 1 . . Max Gunslinging Chain 1 | . 1 . 1 . . Shots Hit Robots 406 | . 60 22 248 . 76 Core Hits 158 | . 23 9 104 . 22 Critical Kills 7 | . . . 2 . 5 Critical Parts Destroyed 6 | . 1 . 1 . 4 Critical Strikes 21 | . 1 . 10 . 10 Burn 5 | . . . 5 . . Meltdown 1 | . . . 1 . . Destroy 13 | . 1 . 2 . 10 Blast 2 | . . . 2 . . Melee Attacks 1 | . . . 1 . . Impact . | . . . . . . Slashing 1 | . . . 1 . . Piercing . | . . . . . . Sneak Attacks 1 | . . . 1 . . Combat Hostiles . | . . . . . . Follow-up Attacks . | . . . . . . Damage Inflicted 7847 | . 902 417 4980 . 1548 Guns 5049 | . 576 360 3127 . 986 Cannons 2618 | . 326 57 1673 . 562 Explosions 117 | . . . 117 . . Melee 63 | . . . 63 . . Ramming . | . . . . . . Kinetic 4901 | . 902 309 2217 . 1473 Thermal 2751 | . . 108 2568 . 75 Explosive 117 | . . . 117 . . Electromagnetic . | . . . . . . Impact 15 | . . . 15 . . Slashing 63 | . . . 63 . . Piercing . | . . . . . . Highest Corruption 9 | . . . 9 . . Average Corruption 8 | . . . 8 . . Corruption Purged . | . . . . . . Corruption Blocked . | . . . . . . Effects 94 | . . . 94 . . Message Errors 22 | . . . 22 . . Matter Fused 19 | . . . 19 . . Heat Flow Errors 13 | . . . 13 . . Energy Discharges 13 | . . . 13 . . Parts Rejected 2 | . . . 2 . . Data Loss (minor) 12 | . . . 12 . . Data Loss (major) 3 | . . . 3 . . Misfires 3 | . . . 3 . . Alerts 4 | . . . 4 . . Weapon Failures 3 | . . . 3 . . Overload Shots . | . . . . . . Overflow Damage 115 | . 14 . 101 . . Projectiles 69 | . 14 . 55 . . Explosions 10 | . . . 10 . . Melee 36 | . . . 36 . . Knockbacks 13 | . 4 . 7 . 2 Impact . | . . . . . . Kinetic 13 | . 4 . 7 . 2 Secondary . | . . . . . . Self-Inflicted Damage . | . . . . . . Shots . | . . . . . . Rammed . | . . . . . . Targets Rammed . | . . . . . . Kicked . | . . . . . . Crushed . | . . . . . . Highest Temperature 589 | . 18 . 296 . 589 Average Temperature 74 | . 9 . 68 . 178 Received Heat Transfer 1917 | . 159 69 1377 . 312 Effects 8 | . . . 4 . 4 Shutdowns 2 | . . . . . 2 Energy Bleed 1 | . . . 1 . . Interference 4 | . . . 3 . 1 Damage (core) 1 | . . . . . 1 Siege Activations . | . . . . . . Martial Activations . | . . . . . . Shielding Activations . | . . . . . . Robots Disrupted . | . . . . . . Combat Hostiles . | . . . . . . Robots Corrupted . | . . . . . . Combat Hostiles . | . . . . . . Parts Fried . | . . . . . . Impact Corruptions . | . . . . . . Robots Melted 1 | . . . 1 . . Combat Hostiles 1 | . . . 1 . . Parts Melted 4 | . . . 4 . . Heat Transferred 5809 | . . 259 5439 . 111 Parts Sabotaged . | . . . . . . Parts Stolen . | . . . . . . Parts Stripped . | . . . . . . Power Chain Reactions . | . . . . . . Alert | -11 -10 -10 -8 -7 -7 ------- Run | Yrd Mat Sub Mat Fac DSF Maximum Alert Level 2 | . . . 2 1 1 Low Security (%) 65 | 100 100 . 62 . 4 Level 1 20 | . . . 15 100 95 Level 2 13 | . . . 22 . . Level 3 . | . . . . . . Level 4 . | . . . . . . Level 5 . | . . . . . . High Security . | . . . . . . Max Security . | . . . . . . Sterilizations 1 | . . . . . 1 Peak Influence 608 | . 121 . 608 273 383 Initial 273 | . . . . 273 193 Average 174 | . 29 . 214 273 306 Influence Increases 2121 | . 381 . 1427 3 310 Destroy 0b10 Robot/C 1200 | . 180 . 840 . 180 Destroy 0b10 Robot/NC 160 | . 30 . 130 . . Destroy Leader 310 | . 48 . 222 . 40 Successful Hack 52 | . 13 . 36 3 . Disable Machine 60 | . . . 60 . . Destroy Structure 69 | . 5 . 64 . . Lose Combat Pursuer 270 | . 105 . 75 . 90 Influence Decreases 1788 | . 295 86 827 327 253 Entered New Map 452 | . . 42 . 327 83 Time Decay 1036 | . 295 44 697 . . Lost Part 300 | . . . 130 . 170 Squads Dispatched 14 | . 2 . 9 . 3 Investigation 5 | . 2 . 3 . . Extermination . | . . . . . . Reinforcement 6 | . . . 3 . 3 Assault . | . . . . . . Garrison 3 | . . . 3 . . Intercept . | . . . . . . Searches Triggered . | . . . . . . Construction Impeded . | . . . . . . Haulers Reinforced . | . . . . . . Active Scanning Responses . | . . . . . . Cargo Convoy Interrupts . | . . . . . . Stealth | -11 -10 -10 -8 -7 -7 --------- Run | Yrd Mat Sub Mat Fac DSF Distress Signals 6 | . 1 . 5 . . Communications Jammed . | . . . . . . Distress Signals . | . . . . . . Times Spotted 106 | . 20 7 65 . 14 Peak Tracking Total 6 | . 5 2 6 . 3 Tactical Retreats 14 | . 5 . 3 . 6 Traps | -11 -10 -10 -8 -7 -7 ------- Run | Yrd Mat Sub Mat Fac DSF Traps Triggered 4 | . 1 . 1 . 2 Indirectly . | . . . . . . Trap Hack Attempts . | . . . . . . Triggered . | . . . . . . Disarmed . | . . . . . . Reprogrammed . | . . . . . . Reused . | . . . . . . Traps Extracted . | . . . . . . Installed . | . . . . . . Triggered . | . . . . . . Machines | -11 -10 -10 -8 -7 -7 ---------- Run | Yrd Mat Sub Mat Fac DSF Machines Disabled 4 | . . . 4 . . Max in Single Turn 1 | . . . 1 . . Garrison Access 1 | . . . 1 . . Machines Repaired . | . . . . . . Machines Dismantled . | . . . . . . Machines Sabotaged . | . . . . . . Overloaded Fab Kills . | . . . . . . Hacking | -11 -10 -10 -8 -7 -7 --------- Run | Yrd Mat Sub Mat Fac DSF Machines Accessed 19 | . 5 . 13 1 . Terminals 13 | . 4 . 8 1 . Fabricators . | . . . . . . Repair Stations 3 | . 1 . 2 . . Recycling Units . | . . . . . . Scanalyzers 2 | . . . 2 . . Garrison Access 1 | . . . 1 . . Total Hacks 71 | . 16 . 52 3 . Successful 45 | . 12 . 32 1 . Failed 26 | . 4 . 20 2 . Catastrophic 3 | . . . 3 . . Database Lockouts . | . . . . . . Manual . | . . . . . . Terminals 41 | . 11 . 27 3 . Fabricators . | . . . . . . Repair Stations 15 | . 5 . 10 . . Recycling Units . | . . . . . . Scanalyzers 13 | . . . 13 . . Garrison Access 2 | . . . 2 . . Terminal Hacks 23 | . 8 . 14 1 . Record 1 | . . . 1 . . Robot Analysis 2 | . 2 . . . . Prototype ID Bank 2 | . . . 2 . . Open DSF 1 | . . . . 1 . Emergency Access Points 4 | . 1 . 3 . . Alert Level 1 | . 1 . . . . Locate Traps 4 | . 2 . 2 . . Dispatch Records 1 | . 1 . . . . Assault Status 1 | . . . 1 . . Hauler Manifests 3 | . 1 . 2 . . Registered Components 1 | . . . 1 . . Registered Prototypes 1 | . . . 1 . . Zone Layout 1 | . . . 1 . . Fabricator Hacks . | . . . . . . Repair Station Hacks 10 | . 4 . 6 . . Scan Component 5 | . 2 . 3 . . Repair 5 | . 2 . 3 . . Recycling Unit Hacks . | . . . . . . Scanalyzer 11 | . . . 11 . . Insert Component 5 | . . . 5 . . Analyze 6 | . . . 6 . . Garrison Access Hacks 1 | . . . 1 . . Seal Access 1 | . . . 1 . . Unauthorized Hacks . | . . . . . . Terminals . | . . . . . . Fabricators . | . . . . . . Repair Stations . | . . . . . . Recycling Units . | . . . . . . Scanalyzers . | . . . . . . Garrison Access . | . . . . . . Data Cores Recovered 1 | . 1 . . . . Used 1 | . 1 . . . . Hacking Detections 14 | . 5 . 9 . . Full Trace Events 8 | . 3 . 5 . . Feedback Events 1 | . . . 1 . . Corruption 1 | . . . 1 . . Feedback Blocked . | . . . . . . Robot Schematics Acquired . | . . . . . . Robots Built . | . . . . . . Authchips . | . . . . . . Time . | . . . . . . Total Robot Build Rating . | . . . . . . Part Schematics Acquired 5 | . . . 5 . . Parts Built . | . . . . . . Authchips . | . . . . . . Time . | . . . . . . Total Part Build Rating . | . . . . . . Part Studies Acquired . | . . . . . . Parts Repaired 5 | . 2 . 3 . . Time 184 | . 58 . 126 . . Parts Recycled . | . . . . . . Recycled Matter . | . . . . . . Retrieved Matter . | . . . . . . Retrieved Components . | . . . . . . Parts Scanalyzed 5 | . . . 5 . . Part Schematics Acquired 5 | . . . 5 . . Parts Damaged 1 | . . . 1 . . Bothacking | -11 -10 -10 -8 -7 -7 ------------ Run | Yrd Mat Sub Mat Fac DSF Used RIF Installer . | . . . . . . Robots Hacked . | . . . . . . Non-combat . | . . . . . . Combat . | . . . . . . Robot Hacks Applied . | . . . . . . Relay Couplers Released . | . . . . . . Fabnet Peak Effective % . | . . . . . . Robots Rewired . | . . . . . . Allies Hacked . | . . . . . . Hacks Repelled . | . . . . . . Allies | -11 -10 -10 -8 -7 -7 -------- Run | Yrd Mat Sub Mat Fac DSF Total Allies . | . . . . . . Largest Group . | . . . . . . Highest-Rated Group . | . . . . . . Highest-Rated Ally . | . . . . . . Total Orders . | . . . . . . Ally Attacks . | . . . . . . Total Damage . | . . . . . . Kills . | . . . . . . Allies Corrupted . | . . . . . . Allies Melted . | . . . . . . Intel | -11 -10 -10 -8 -7 -7 ------- Run | Yrd Mat Sub Mat Fac DSF Active Infowar (turns) 3826 | . 155 . 3227 4 440 Optics 716 | . . . 716 . . Structural 469 | . . . 469 . . Traps 2598 | . . . 2154 4 440 Seismic 155 | . 155 . . . . Robot Analysis Total 2 | . 2 . . . . Derelict Logs Recovered . | . . . . . . Drone Launches . | . . . . . . Drone Recoveries . | . . . . . . Exploration | -11 -10 -10 -8 -7 -7 ------------- Run | Yrd Mat Sub Mat Fac DSF Turns Passed 6555 | 69 1439 1001 3406 4 636 Spaces Moved 3174 | 38 749 591 1590 3 203 Core 17 | 9 . . . . 8 Treads 2718 | 29 749 591 1163 3 183 Legs 172 | . . . 160 . 12 Wheels . | . . . . . . Hover 267 | . . . 267 . . Flight . | . . . . . . Fastest Speed 42 | 50 160 160 42 161 155 Average Speed 165 | 133 160 160 161 161 230 Slowest Speed 850 | 160 160 160 250 161 850 Overloaded Moves . | . . . . . . Propulsion Burnouts . | . . . . . . Robots Hopped . | . . . . . . Potential Cave-ins . | . . . . . . Cave-ins Triggered . | . . . . . . Exploration Rate (%) 63 | 4 90 61 93 . 69 Regions Visited 5 Branch Regions 1 Pre-discovered Areas . | . . . . . . Known Exits Taken 1 | . . . . 1 . Unknown Exits Taken 4 | 1 1 1 1 . . Scrap Searched . | . . . . . . Spaces Dug 11 | . 2 . 9 . . Terrain Destroyed 61 | . 3 . 58 . . Melee . | . . . . . . Projectile 51 | . 3 . 48 . . AOE 10 | . . . 10 . . Terrain Rammed . | . . . . . . Walls Destroyed . | . . . . . . Machines Disabled . | . . . . . . Actions | -11 -10 -10 -8 -7 -7 --------- Run | Yrd Mat Sub Mat Fac DSF Total 3876 | 53 888 616 2035 2 282 Wait 148 | 4 63 . 79 . 2 Move 3169 | 37 748 590 1589 2 203 Hop . | . . . . . . Pick Up 51 | 6 7 4 29 . 5 Fast Attach 37 | 5 2 1 22 . 7 Attach 34 | . 2 1 20 . 11 Detach 6 | . . . 6 . . Swap 55 | 1 9 2 37 . 6 Drop 51 | . 5 1 40 . 5 Fire 324 | . 52 17 212 . 43 Melee 1 | . . . 1 . . Ram . | . . . . . . Kick . | . . . . . . Crush . | . . . . . . Escape Stasis . | . . . . . . Rewire . | . . . . . . Trap . | . . . . . . Miscellaneous . | . . . . . . Route ------- -11/Scrapyard -10/Materials (discovered 5 exits: [*Mat x3] / [*Min] / [*Sub]) -10/Subcaves (discovered 2 exits: *Mat x2) -8/Materials (discovered 3 exits: *Fac x3) -7/Factory -7/DSF History --------- Turn | Location | Event 9 | -11/Scrapyard | Discovered new exit (range 14) 70 | -11/Scrapyard | Entered Materials 313 | -10/Materials | Build established: Mutant 391 | -10/Materials | Discovered new exit (range 15) 642 | -10/Materials | Repaired Lgt. Treads 676 | -10/Materials | Repaired Particle Gun 768 | -10/Materials | Discovered new exit (range 6) 826 | -10/Materials | Discovered new exit (range 15) 997 | -10/Materials | Discovered new exit (range 3) 1070 | -10/Materials | Derelicts attacked the area 1376 | -10/Materials | Discovered new exit (range 16) 1509 | -10/Materials | Entered Subcaves 1973 | -10/Subcaves | Discovered new exit (range 14) 2002 | -10/Subcaves | Shifting Twisted Machinery released Battle Rifle 2008 | -10/Subcaves | Shifting Twisted Machinery released Mak. Hacking Suite 2383 | -10/Subcaves | Shifting Twisted Machinery released Sub. Shrapnel Launcher 2406 | -10/Subcaves | Shifting Twisted Machinery released Barrage Gun 2496 | -10/Subcaves | Discovered new exit (range 8) 2510 | -10/Subcaves | Entered Materials 2510 | -8/Materials | Evolved 4 slots: Propulsion x1, Utility x3 2642 | -8/Materials | Repaired Particle Gun 2667 | -8/Materials | Garrison activated, responded to threat 2687 | -8/Materials | Repaired Broken Sub. Machine Gun 2999 | -8/Materials | Lost 4 parts (2n1u1w) 3098 | -8/Materials | Discovered new exit (range 16) 3249 | -8/Materials | Build established: Scavenger-Mutant 3649 | -8/Materials | Core integrity fell below 50% 3679 | -8/Materials | Repaired Adv. Heat Sink 3935 | -8/Materials | Build established: Mutant 5329 | -8/Materials | Discovered new exit (range 5) 5652 | -8/Materials | Build established: Scavenger-Mutant 5896 | -8/Materials | Discovered new exit (range 11) 5916 | -8/Materials | Entered Factory 5916 | -7/Factory | Evolved 2 slots: Propulsion x1, Weapon x1 5920 | -7/Factory | Identified exit to DSF 5920 | -7/Factory | Entered DSF 5948 | -7/DSF | Additional patrols routed to DSF 6097 | -7/DSF | Lost 3 parts (3u) 6317 | -7/DSF | Build established: Tank 6370 | -7/DSF | Core integrity fell below 50% 6394 | -7/DSF | Core integrity fell below 20% 6430 | -7/DSF | Lost 12 parts (1p3n4u4w) 6444 | -7/DSF | Sterilization system engaged 6464 | -7/DSF | Ambient heat levels rising (+10) 6479 | -7/DSF | Ambient heat levels rising (+10) 6494 | -7/DSF | Ambient heat levels rising (+10) 6509 | -7/DSF | Ambient heat levels rising (+10) 6524 | -7/DSF | Ambient heat levels rising (+10) 6539 | -7/DSF | Ambient heat levels rising (+10) 6554 | -7/DSF | Ambient heat levels rising (+10) 6557 | -7/DSF | Core destroyed Last Messages --------------- Acquired 5 matter. Acquired 60 matter. ALERT: Ambient heat levels +10. Acquired Imp. Medium Treads. ALERT: Ambient heat levels +10. Acquired 7 matter. ALERT: Ambient heat levels +10. Acquired Adv. Targeting Computer. ALERT: Ambient heat levels +10. A-02 Transporter heat damages Transport Network Coupler. ALERT: Ambient heat levels +10. Acquired Deuterium Engine. Power failure, Deuterium Engine shutdown. ALERT: Ambient heat levels +10. [Achievement: Well Done] Power failure, Imp. Deuterium Engine shutdown. Overheating: System interference. Hyp. Gauss Cannon temporarily disabled. Overheating: Core damaged (-112). Map ----- +----------------------------------------------------+ | ??????# ! """""#???? | | ??????### ###!!!# ## ""###????? | | ??????### ###!!!# ### ###??????? | | ??????# ##/####### ##???????? | | ??????# ## #####!! !#???????? | | ??????# ##=]! #! !#???????? | | ??????### ####[][##### ##???????? | | ??????#!! !!##!=]#?# !#???????? | | ??????#!! !!##%###?# !#???????? | | ??????#!! !!##!#???#% !#???????? | | #?####### ####+#######![###??????? | | #!!!### ###===# ##! #??????? | | #!!!##[ "" " ##| ##?????? | | * [ ! ! != =!!"#?????? | | %!% " ! %!!##?????? | | % % " " !!#??????? | | ==#]]]"" % ##!!!# ## !!#??????? | | =?#]]]### ###!!!# ## !!#??????? | | ??#####?# #?########## ###??????? | | ???????!! ]]???????#* #???????? | | ??????#!! ]]#??????#** #???????? | | ??????#!! ]]#??????#** #???????? | | ??????### ###??????### ##???????? | | ????????! /????????#** *#???????? | | ????????! /????????#** #???????? | | ???????!! //???????### @##???????? | | ???????## ##?????????# #????????? | | ????????# #?????????# "????????? | | ???????? ???????? ""???????? | | ???????? ??????? ""#??????? | | ?????????]]]???????**##"""""#??????? | | ??????????????????###?#"""""#??????? | | ??????????????????????##"###???????? | | ???????????????????????#"??????????? | | ???????????????????????????????????? | | ???????????????????????????????????? | | ???????????????????????????????????? | | ???????????????????????????????????? | | ???????????????????????????????????? | | ???????????????????????????????????? | | | | | | | | | | | | | | | | | | | | | +----------------------------------------------------+ Best States ------------- Heat Dissipation 64 Energy Generation 15 Energy Capacity 275 Matter Stores 300 Matter Capacity 300 Sight Range 21 Terrain Scan Density 10 Additional Mass Support 9 Armor Coverage 600 Power Shielding 66 Evasion (%) 55 Targeting Accuracy 8 Recoil Reduction 4 Offensive Hacking 11 Item Schematics ----------------- Arm. Treads | -8/Materials | Scanalyzed Aerolev Unit | -8/Materials | Scanalyzed Imp. VTOL Module | -8/Materials | Scanalyzed Imp. Terrain Scanner | -8/Materials | Scanalyzed Hvy. Particle Cannon | -8/Materials | Scanalyzed Robot Schematics ------------------ None Fabricated ------------ Nothing Repaired ---------- Lgt. Treads | 67% | -10/Materials Particle Gun | 76% | -10/Materials Particle Gun | 72% | -8/Materials Sub. Machine Gun | 57% | -8/Materials | Broken Adv. Heat Sink | 26% | -8/Materials Studied --------- None Alien Tech Used ----------------- None Achievements -------------- DATA ERROR: Steam Global Achievement% Heavy Suspicion Hot Goods Hydra Organ Harvest Overwhelming Spot Them First There's More Where That Came From Throw Away The Key Well Done Challenges ------------ None Game ------ Seed ProjectileHeavyBallwheel Manual? 0 Play Time 01:31:52 Cumulative 37.6 hours Start 2025.10.21 @ 22:02:58 End 2025.10.21 @ 23:37:49 Sessions 1 Manual Loads 0 Difficulty Rogue Special Mode None Game No. 45 Rogue 45 Adventurer 0 Explorer 0 Win Type - Total 0 Types 0/0/0/0/0/0/0/0/0/0 Lore% 29 Gallery% 26 Achievement% 15 Wizard Run 0 Options --------- Layout 1 ASCII 0 Keyboard 0 Movement Numpad Keybinds 0 Fullscreen 1 Font 24/Swanston Map View 50x35 Zoom Use 0% Tactical HUD 0 Map Filters NONE Filters NONE Steam 1 RUN: a03666f1-ea64-4323-a713-5d74e9af8879